Cogmind - Beta 11.1 @@@ ROGUE MODE // 2022.06.11 @ 11:10:29 Player: Kisscool Result: Destroyed by as-84670 with Assembled F-torch Performance ------------- Evolutions (0) 0 Regions Visited (2) 400 Robots Destroyed (8) 40 Value Destroyed (60) 60 Prototype IDs (0) 0 Alien Tech Used (0) 0 Bonus (0) 0 TOTAL SCORE: 500 Bonus ------- None Cogmind --------- Core Integrity 0/250 Matter 202/300 Energy 125/125 System Corruption 4% Temperature Hot (243) Movement Rolling (100) Location -10/Mines Parts ------- > --- POWER (1) -------- Light Ion Engine > --- PROPULSION (2) --- Compact Wheel > --- UTILITY (2) ------ Improved Terrain Scanner Terrain Scan Processor > --- WEAPON (2) ------- (None) > --- INVENTORY (5) ---- Wheel High-capacity Matter Pod (182) Peak State ------------ > --- POWER ------------ Light Ion Engine > --- PROPULSION ------- Compact Wheel Compact Wheel > --- UTILITY ---------- Improved Terrain Scanner Terrain Scan Processor > --- WEAPON ----------- Assault Rifle Assault Rifle > --- INVENTORY -------- Light Ion Engine Wheel High-capacity Matter Pod [Rating: 10] Favorites ----------- Power Light Ion Engine Engine Light Ion Engine Propulsion Compact Wheel Treads Light Treads Wheel Compact Wheel Flight Unit Flight Unit Utility Improved Terrain Scanner Device Improved Terrain Scanner Storage Small Storage Unit Processor Terrain Scan Processor Weapon Assault Rifle Ballistic Gun Assault Rifle Build | -11 -10 -10 ------- Run | Scr Mat Min Slots Evolved . | . . . Power . | . . . Propulsion . | . . . Utility . | . . . Weapon . | . . . Parts Attached 17 | 11 5 1 Power 2 | 1 . 1 Engine 2 | 1 . 1 Core . | . . . Reactor . | . . . Propulsion 9 | 5 4 . Treads 1 | 1 . . Leg . | . . . Wheel 6 | 4 2 . Hover . | . . . Flight 2 | . 2 . Utility 3 | 2 1 . Device 1 | 1 . . Storage 1 | 1 . . Processor 1 | . 1 . Hackware . | . . . Protection . | . . . Artifact . | . . . Weapon 3 | 3 . . Energy Gun . | . . . Energy Cannon . | . . . Ballistic Gun 3 | 3 . . Ballistic Cannon . | . . . Launcher . | . . . Special Weapon . | . . . Impact Weapon . | . . . Slashing Weapon . | . . . Piercing Weapon . | . . . Special Melee Weapon . | . . . Unidentified Prototypes . | . . . Parts Lost 4 | . . 4 Power 1 | . . 1 Propulsion 1 | . . 1 Utility . | . . . Weapon 2 | . . 2 Highest Loss Streak 2 | . . 2 To Critical Strikes . | . . . Average Slot Usage (%) 98 | . 100 95 Engine 14 | . 14 14 Wheel 27 | . 26 28 Device 14 | . 14 14 Storage 5 | . 8 . Processor 8 | . 5 14 Ballistic Gun 26 | . 28 23 Naked Turns . | . . . Heaviest Build 13 | 13 13 8 Greatest Support 32 | 32 32 32 Greatest Overweight (x) 3 | 1 3 . Average Overweight (x) . | . . . Largest Inventory Capacity 8 | 8 8 5 Average Capacity 6 | 7 6 5 Most Carried 8 | 8 8 3 Average Carried 5 | 6 5 2 Final Capacity 8 | 8 5 5 Final Carried 8 | 8 3 2 Class Distribution -------------------- 60% | Mutant 39% | Scavenger-Mutant Dominant Class ---------------- Mutant | -10/Materials Scavenger-Mutant | -10/Mines Resources | -11 -10 -10 ----------- Run | Scr Mat Min Matter Collected 602 | 352 250 . Remotely . | . . . Salvage Created 279 | 141 68 70 Parts 28 | 11 17 . Haulers Intercepted . | . . . Recyclers Shooed . | . . . Parts Field Recycled . | . . . Retrieved Matter . | . . . Parts Self-Destructed . | . . . Prevented . | . . . Kills | -11 -10 -10 ------- Run | Scr Mat Min Combat Hostiles Destroyed 8 | . 3 5 Guns 8 | . 3 5 Classes Destroyed 5 | 2 2 1 Builder 2 | . 2 . Tunneler 2 | 2 . . Recycler 1 | 1 . . Swarmer 3 | . 3 . Assembled 5 | . . 5 Best Kill Streak 3 | 3 3 3 Combat Bots Only 3 | . 3 3 Max Kills in Single Turn 1 | 1 1 1 Gunslinging . | . . . Exploded . | . . . Melee . | . . . Uniques/NPCs Destroyed . | . . . Combat | -11 -10 -10 -------- Run | Scr Mat Min Damage Taken 595 | . 42 553 Core 251 | . 15 236 Absorbed by Shields . | . . . Core Remaining (%) 100 | 100 . . Volleys Fired 35 | 7 7 21 Largest 2 | 2 2 2 Hottest 40 | 40 40 40 Shots Fired 56 | 14 14 28 Gun 56 | 14 14 28 Cannon . | . . . Launcher . | . . . Special . | . . . Kinetic 56 | 14 14 28 Thermal . | . . . Explosive . | . . . Electromagnetic . | . . . Robot Hit Streak 4 | 3 2 4 Robot Miss Streak 5 | 5 2 3 Penetration Max . | . . . Secondary Targets . | . . . Shots Hit Robots 27 | 6 6 15 Core Hits 18 | 3 5 10 Critical Kills . | . . . Critical Parts Destroyed . | . . . Critical Strikes . | . . . Melee Attacks . | . . . Impact . | . . . Slashing . | . . . Piercing . | . . . Sneak Attacks . | . . . Combat Hostiles . | . . . Follow-up Attacks . | . . . Damage Inflicted 392 | 87 70 235 Guns 392 | 87 70 235 Cannons . | . . . Explosions . | . . . Melee . | . . . Ramming . | . . . Kinetic 392 | 87 70 235 Thermal . | . . . Explosive . | . . . Electromagnetic . | . . . Impact . | . . . Slashing . | . . . Piercing . | . . . Highest Corruption 4 | . . 4 Average Corruption 4 | . . 4 Corruption Purged . | . . . Corruption Blocked . | . . . Overload Shots . | . . . Overflow Damage . | . . . Projectiles . | . . . Explosions . | . . . Melee . | . . . Knockbacks . | . . . Impact . | . . . Kinetic . | . . . Secondary . | . . . Self-Inflicted Damage . | . . . Shots . | . . . Rammed . | . . . Targets Rammed . | . . . Kicked . | . . . Crushed . | . . . Highest Temperature 283 | . . 283 Average Temperature 193 | . . 193 Received Heat Transfer 800 | . . 800 Siege Activations . | . . . Robots Corrupted . | . . . Combat Hostiles . | . . . Parts Fried . | . . . Impact Corruptions . | . . . Robots Melted . | . . . Combat Hostiles . | . . . Parts Melted . | . . . Heat Transferred . | . . . Parts Sabotaged . | . . . Parts Stolen . | . . . Parts Stripped . | . . . Power Chain Reactions . | . . . Missiles Intercepted . | . . . Alert | -11 -10 -10 ------- Run | Scr Mat Min Peak Influence 99 | 15 99 38 Initial 38 | . 9 38 Average 45 | 5 71 29 Maximum Alert Level . | . . . Low Security (%) 100 | 100 100 100 Level 1 . | . . . Level 2 . | . . . Level 3 . | . . . Level 4 . | . . . Level 5 . | . . . High Security . | . . . Max Security . | . . . Squads Dispatched . | . . . Investigation . | . . . Extermination . | . . . Reinforcement . | . . . Assault . | . . . Garrison . | . . . Intercept . | . . . Searches Triggered . | . . . Construction Impeded . | . . . Haulers Reinforced . | . . . Active Scanning Responses . | . . . Cargo Convoy Interrupts . | . . . Stealth | -11 -10 -10 --------- Run | Scr Mat Min Distress Signals 1 | . 1 . Communications Jammed . | . . . Distress Signals . | . . . Times Spotted 11 | . 4 7 Peak Tracking Total 4 | . 4 4 Tactical Retreats . | . . . Traps | -11 -10 -10 ------- Run | Scr Mat Min Traps Triggered . | . . . Indirectly . | . . . Trap Hack Attempts . | . . . Triggered . | . . . Disarmed . | . . . Reprogrammed . | . . . Reused . | . . . Traps Extracted . | . . . Installed . | . . . Triggered . | . . . Machines | -11 -10 -10 ---------- Run | Scr Mat Min Machines Disabled . | . . . Max in Single Turn . | . . . Machines Sabotaged . | . . . Garrisons Compromised . | . . . Overloaded Fab Kills . | . . . Hacking | -11 -10 -10 --------- Run | Scr Mat Min Machines Accessed 1 | . 1 . Terminals 1 | . 1 . Fabricators . | . . . Repair Stations . | . . . Recycling Units . | . . . Scanalyzers . | . . . Garrison Access . | . . . Total Hacks 1 | . 1 . Successful 1 | . 1 . Failed . | . . . Catastrophic . | . . . Database Lockouts . | . . . Manual . | . . . Terminals 1 | . 1 . Fabricators . | . . . Repair Stations . | . . . Recycling Units . | . . . Scanalyzers . | . . . Garrison Access . | . . . Terminal Hacks 1 | . 1 . Branch Access Points 1 | . 1 . Fabricator Hacks . | . . . Repair Station Hacks . | . . . Recycling Unit Hacks . | . . . Scanalyzer . | . . . Garrison Access Hacks . | . . . Unauthorized Hacks . | . . . Terminals . | . . . Fabricators . | . . . Repair Stations . | . . . Recycling Units . | . . . Scanalyzers . | . . . Garrison Access . | . . . Data Cores Recovered . | . . . Used . | . . . Hacking Detections . | . . . Full Trace Events . | . . . Feedback Events . | . . . Feedback Blocked . | . . . Robot Schematics Acquired . | . . . Robots Built . | . . . Authchips . | . . . Time . | . . . Total Robot Build Rating . | . . . Part Schematics Acquired . | . . . Parts Built . | . . . Authchips . | . . . Time . | . . . Total Part Build Rating . | . . . Parts Repaired . | . . . Time . | . . . Parts Recycled . | . . . Recycled Matter . | . . . Retrieved Matter . | . . . Retrieved Components . | . . . Parts Scanalyzed . | . . . Part Schematics Acquired . | . . . Parts Damaged . | . . . Bothacking | -11 -10 -10 ------------ Run | Scr Mat Min Used RIF Installer . | . . . Robots Hacked . | . . . Non-combat . | . . . Combat . | . . . Robot Hacks Applied . | . . . Relay Couplers Released . | . . . Fabnet Peak Effective % . | . . . Robots Rewired . | . . . Allies Hacked . | . . . Hacks Repelled . | . . . Allies | -11 -10 -10 -------- Run | Scr Mat Min Total Allies . | . . . Largest Group . | . . . Highest-Rated Group . | . . . Highest-Rated Ally . | . . . Total Orders . | . . . Ally Attacks . | . . . Total Damage . | . . . Kills . | . . . Allies Corrupted . | . . . Allies Melted . | . . . Intel | -11 -10 -10 ------- Run | Scr Mat Min Robot Analysis Total . | . . . Derelict Logs Recovered . | . . . Drone Launches . | . . . Drone Recoveries . | . . . Exploration | -11 -10 -10 ------------- Run | Scr Mat Min Turns Passed 423 | 111 222 90 Spaces Moved 278 | 70 169 39 Core 21 | 21 . . Treads 6 | 6 . . Legs . | . . . Wheels 249 | 43 167 39 Hover . | . . . Flight 2 | . 2 . Fastest Speed 50 | 50 100 100 Average Speed 97 | 88 101 100 Slowest Speed 285 | 160 285 100 Overloaded Moves . | . . . Propulsion Burnouts . | . . . Robots Hopped . | . . . Cave-ins Triggered . | . . . Exploration Rate (%) 19 | 4 40 15 Regions Visited 2 Branch Regions 1 Pre-discovered Areas . | . . . Known Exits Taken 1 | . 1 . Unknown Exits Taken 1 | 1 . . Scrap Searched . | . . . Spaces Dug . | . . . Terrain Destroyed . | . . . Melee . | . . . Projectile . | . . . AOE . | . . . Terrain Rammed . | . . . Walls Destroyed . | . . . Machines Disabled . | . . . Actions | -11 -10 -10 --------- Run | Scr Mat Min Total 373 | 102 209 62 Wait 18 | 1 16 1 Move 276 | 69 168 39 Hop . | . . . Pick Up 14 | 12 2 . Fast Attach 9 | 5 4 . Attach 6 | 4 1 1 Detach . | . . . Swap 2 | 2 . . Drop 13 | 2 11 . Fire 35 | 7 7 21 Melee . | . . . Ram . | . . . Kick . | . . . Crush . | . . . Escape Stasis . | . . . Rewire . | . . . Trap . | . . . Miscellaneous . | . . . Route ------- -11/Scrapyard -10/Materials (discovered 3 exits: [*Mat] / *Min x2) -10/Mines History --------- Turn | Location | Event 20 | -11/Scrapyard | Discovered new exit (range 16) 112 | -11/Scrapyard | Entered Materials 133 | -10/Materials | Identified exit to Mines 235 | -10/Materials | Discovered new exit (range 16) 334 | -10/Materials | Entered Mines 351 | -10/Mines | Assembled infested the area 376 | -10/Mines | Met a Derelict bent on vengeance 389 | -10/Mines | Core integrity fell below 50% 415 | -10/Mines | Core integrity fell below 20% 424 | -10/Mines | Destroyed by as-84670 with Assembled F-torch Last Messages --------------- 00241_ Dropped Aluminum Leg. 00242_ Dropped Sml. Storage Unit. 00258_ K-01 Serf collects debris. 00307_ K-01 Serf cleans the Fusion Modulator. LOCATION=MINES GOAL=ESCAPE Something is scanning the area. 00351_ ALERT: Infestation in the mines, dispatching Demolisher response squad. 00370_ as-68251 destroyed. 00376_ as-27389 destroyed. 00380_ Lgt. Ion Engine destroyed. 00387_ Critical hit (Burn: +80). 00389_ as-88821 destroyed. 00390_ Assault Rifle destroyed. 00414_ as-93452 destroyed. 00421_ Com. Wheel destroyed. 00421_ System corrupted by crushing effect (+4). 00422_ as-30698 destroyed. 00424_ Assault Rifle destroyed. Map ----- +----------------------------------------------------+ | ?????????????????????????????????????????????????? | | ?????????????????????????????????????????????????? | | ?????????????????????????????????????????????????? | | ?????????????????????????????????????????????????? | | ?????????????????????????????????????????????????? | | ?????????????????????????????????????????????????? | | ????????????????????????#????????????????????????? | | ?????????????????????#???# ??????????????????????? | | ????????????????????#???##?? ? ??????????????????? | | ?????????????????##?##?????? ?#?????????????????? | | ??????????????#####????#?##? ??? ???????????????? | | ??????????????## #????#???? ## ? ? ?????????????? | | ??????????????# ######?# #?? ? ?? ?????????? | | ?????????????#? #?#?### ##?? ????????????? | | ??????????????## #?#??? #?? ?? ????????????? | | ??????????? #???# ##### ## ? ???????????? | | ???????????# #?#?## !??? ???#??#???????? | | ??????????##?? ??## =?? ???????????????? | | ?????????####???#?# ?# ?? ?? ????????? | | ????????????????#??# %%#??####?? ???##??? ???? | | ?????????###???#???## %#?##?###?####???#???#? ? | | ?????????##???????#??# %##?#?#########??????#? ? | | ????????????##???###?## #?????#######?#??##?## | | ?????????#??## ??###??# #####???#?##??#??????# | | ?????????#?##??##?#?#?#aa######?#####???#????? ? | | ???????????????###???## @ ##?#?###???##??? ? | | ?????????#???#??#??##?# #### ##########?#???? ? | | ??????????#??#? ??? #### ##????# | | ????????????#???# ##?########## ###?#?# ? | | ??????????##?#### #######???#?####?## #????## #? | | ???????????#??#?# ??####??#??#??##?#?# #??#### #? | | ???????????#?##?#????????#?#?##?###??# #### ## #? | | ??????????????###????#?#??#?#???##?#?# # #? | | ??????????????##? ?#####???##???#??##### # #? | | ?????????????????? #####????####???#?### # ## | | ???????????????#? ??? ??##?##?###?## ?#?## ## | | ????????????????##?? ? ?##?#???#??????? ??# # | | ????????????????????? ??#??###? ???? ???# | | ?????????????????????????#?????? ?? ???## | | ???????????????????????????#???? ?????#??### | | ????????????????????????#???#??? ??????#?#??# | | ????????????????????????????????? ?????###?# | | ??????????????????????????????? ??? ????#?# | | ??????????????????????????????????#???????# # | | ?????????????????????????????????? ??????### # | | ??????????????????????????????????? ???????## ## | | ?????????????????????????????????? ???????#?#####? | | ?????????????????????????????????????????????????? | | ?????????????????????????????????????????????????# | | ????????????????????????????????????#?????????#??? | +----------------------------------------------------+ Best States ------------- Heat Dissipation 25 Energy Generation 10 Energy Capacity 125 Matter Stores 300 Matter Capacity 300 Sight Range 16 Terrain Scan Range 16 Terrain Scan Density 85 Evasion (%) 50 Recoil Reduction 1 Item Schematics ----------------- None Robot Schematics ------------------ None Fabricated ------------ Nothing Alien Tech Used ----------------- None Achievements -------------- None Challenges ------------ None Game ------ Seed UltimatePulseImmobilizer Manual? 0 Play Time 00:14:26 Cumulative 16.8 hours Start 2022.06.11 @ 10:51:38 End 2022.06.11 @ 11:10:29 Sessions 1 Manual Loads 0 Difficulty Rogue Special Mode None Game No. 6 Rogue 6 Adventurer 0 Explorer 0 Win Type - Total 0 Types 0/0/0/0/0/0/0/0/0 Lore% 15 Gallery% 17 Achievement% 20 Wizard Run 0 Options --------- ASCII 0 Keyboard 0 Movement Numpad Keybinds 0 Fullscreen 2 Font 18/Terminus Map View 76x50 Tactical HUD 1 Map Filters NONE Filters NONE Steam 1 RUN: fc54aba0-8f6b-4583-8fa9-2aefa49f428a